Workbook

Sheet 附表四
A1: 附表4：
A2: 2023年江门市本级一般公共预算调整情况表
J3: 单位：亿元
A4: 收 入 | F4: 支 出
A5: 项目 | B5: 年初预算数 | C5: 调增额 | D5: 调减额 | E5: 调整预算数 | F5: 项目 | G5: 年初预算数 | H5: 调增额 | I5: 调减额 | J5: 调整预算数
A6: 一、一般公共预算收入 | B6: 53.4772 | E6: =B6+C6-D6 -> 53.4772 | F6: 一、一般公共预算支出 | G6: 77.4676 | J6: =G6+H6-I6 -> 77.4676
A7: 二、上年结转收入 | B7: 2.0000 | E7: =B7+C7-D7 -> 2.0000 | F7: 二、转移性支出 | G7: =G8+G9 -> 41.5830 | H7: =H8+H9 -> 0.0000 | I7: 0.0000 | J7: =G7+H7-I7 -> 41.5830
A8: 三、转移性收入 | B8: =B9+B10 -> 33.4745 | C8: =C9+C10 -> 0.0000 | D8: 0.0000 | E8: =B8+C8-D8 -> 33.4745 | F8: （一）上解上级支出 | G8: 6.9588 | J8: =G8+H8-I8 -> 6.9588
A9: （一）上级补助收入 | B9: 19.8906 | E9: =B9+C9-D9 -> 19.8906 | F9: （二）补助下级支出 | G9: 34.6242 | J9: 34.6242
A10: （二）下级上解收入 | B10: 13.5839 | E10: =B10+C10-D10 -> 13.5839 | F10: 三、债务转贷支出 | G10: =G11+G12 -> 1.0000 | H10: =H11+H12 -> 39.7166 | I10: 0.0000 | J10: 40.7166
A11: 四、债务转贷收入 | B11: =B12+B13 -> 1.0000 | C11: =C12+C13 -> 58.5773 | D11: =D12+D13 -> 0.0000 | E11: =E12+E13 -> 59.5773 | F11: （一）再融资债券支出 | H11: =58.1773-18.8607 -> 39.3166 | J11: =G11+H11-I11 -> 39.3166
A12: （一）再融资债券收入 | C12: 58.1773 | E12: =B12+C12-D12 -> 58.1773 | F12: （二）一般债券支出 | G12: 1.0000 | H12: 0.4000 | J12: 1.4000
A13: （二）一般债券收入 | B13: 1.0000 | C13: 0.4000 | E13: 1.4000 | F13: 四、债务还本支出 | G13: 0.0002 | H13: 18.8607 | J13: 18.8609
A14: 五、调入资金 | B14: 30.0991 | E14: =B14+C14-D14 -> 30.0991 | F14: 五、结转下年支出
A16: 收入总计 | B16: =B6+B7+B8+B11+B14+B15 -> 120.0508 | C16: =C6+C8+C11+C14+C15 -> 58.5773 | E16: =E6+E7+E8+E11+E14+E15 -> 178.6281 | F16: 支出总计 | G16: =G6+G7+G10+G13+G14 -> 120.0508 | H16: =H6+H7+H10+H13 -> 58.5773 | J16: =J6+J7+J10+J13+J14 -> 178.6281
